Cogmind - Beta 11.1 @@@ ROGUE MODE // 2022.07.04 @ 01:13:07 Player: Voxette Result: Destroyed by G-34 Mercenary with Small Laser Performance ------------- Evolutions (0) 0 Regions Visited (1) 200 Robots Destroyed (20) 100 Value Destroyed (285) 285 Prototype IDs (0) 0 Alien Tech Used (0) 0 Bonus (-15) -15 TOTAL SCORE: 570 Bonus ------- Friendly Fire -15 Cogmind --------- Core Integrity 0/250 Matter 167/300 Energy 100/100 System Corruption 12% Temperature Cool (6) Movement Core (50) Location -10/Materials Parts ------- > --- POWER (1) -------- (None) > --- PROPULSION (2) --- (None) > --- UTILITY (2) ------ Terrain Scan Processor Transport Network Coupler > --- WEAPON (2) ------- (None) > --- INVENTORY (5) ---- Aluminum Leg Hover Unit Structural Scanner Improved Terrain Scanner Improved Terrain Scanner Peak State ------------ > --- POWER ------------ Ion Engine > --- PROPULSION ------- Wheel Wheel > --- UTILITY ---------- Small Storage Unit Seismic Detector > --- WEAPON ----------- Assault Rifle Mining Laser > --- INVENTORY -------- Light Ion Engine Light Treads Light Treads Aluminum Leg Aluminum Leg Improved Terrain Scanner Assault Rifle Light Assault Rifle [Rating: 8] Favorites ----------- Power Ion Engine Engine Ion Engine Propulsion Wheel Treads Light Treads Wheel Wheel Hover Unit Hover Unit Utility Small Storage Unit Device Seismic Detector Storage Small Storage Unit Processor Terrain Scan Processor Weapon Assault Rifle Ballistic Gun Assault Rifle Launcher Grenade Launcher Special Weapon Mining Laser Build | -11 -10 ------- Run | Scr Mat Slots Evolved . | . . Power . | . . Propulsion . | . . Utility . | . . Weapon . | . . Parts Attached 20 | 9 11 Power 1 | 1 . Engine 1 | 1 . Core . | . . Reactor . | . . Propulsion 5 | 2 3 Treads 2 | . 2 Leg . | . . Wheel 2 | 2 . Hover 1 | . 1 Flight . | . . Utility 8 | 2 6 Device 3 | 1 2 Storage 3 | 1 2 Processor 2 | . 2 Hackware . | . . Protection . | . . Artifact . | . . Weapon 6 | 4 2 Energy Gun . | . . Energy Cannon . | . . Ballistic Gun 3 | 3 . Ballistic Cannon . | . . Launcher 1 | . 1 Special Weapon 2 | 1 1 Impact Weapon . | . . Slashing Weapon . | . . Piercing Weapon . | . . Special Melee Weapon . | . . Unidentified Prototypes . | . . Parts Lost 9 | . 9 Power 1 | . 1 Propulsion 3 | . 3 Utility 2 | . 2 Weapon 3 | . 3 Highest Loss Streak 7 | . 7 To Critical Strikes 2 | . 2 Average Slot Usage (%) 32 | . 32 Engine 2 | . 2 Treads 6 | . 6 Wheel 5 | . 5 Device 4 | . 4 Storage 2 | . 2 Processor 4 | . 4 Ballistic Gun 3 | . 3 Launcher 2 | . 2 Naked Turns 417 | . 417 Heaviest Build 16 | 15 16 Greatest Support 40 | 20 40 Greatest Overweight (x) 1 | 1 1 Average Overweight (x) . | . . Largest Inventory Capacity 25 | 8 25 Average Capacity 7 | 7 5 Most Carried 8 | 8 8 Average Carried 7 | 7 5 Final Capacity 8 | 8 5 Final Carried 8 | 8 5 Class Distribution -------------------- 100% | Mutant Dominant Class ---------------- Mutant | -10/Materials Resources | -11 -10 ----------- Run | Scr Mat Matter Collected 620 | 464 156 Remotely . | . . Salvage Created 359 | 241 118 Parts 47 | 24 23 Haulers Intercepted . | . . Recyclers Shooed . | . . Parts Field Recycled . | . . Retrieved Matter . | . . Parts Self-Destructed . | . . Prevented . | . . Kills | -11 -10 ------- Run | Scr Mat Combat Hostiles Destroyed 5 | . 5 Guns 2 | . 2 AOE 3 | . 3 Classes Destroyed 7 | 3 4 Worker 2 | 2 . Builder 2 | . 2 Tunneler 9 | 8 1 Recycler 1 | 1 . Watcher 1 | . 1 Swarmer 3 | . 3 Grunt 2 | . 2 Best Kill Streak 8 | 2 8 Combat Bots Only 5 | . 5 Max Kills in Single Turn 2 | 1 2 Gunslinging . | . . Exploded 1 | . 1 Melee . | . . Uniques/NPCs Destroyed . | . . Combat | -11 -10 -------- Run | Scr Mat Damage Taken 1079 | . 1079 Core 257 | . 257 Absorbed by Shields . | . . Core Remaining (%) 100 | 100 . Volleys Fired 62 | 35 27 Largest 2 | 2 2 Hottest 100 | 100 50 Shots Fired 99 | 64 35 Gun 73 | 58 15 Cannon . | . . Launcher 14 | . 14 Special 12 | 6 6 Kinetic 73 | 58 15 Thermal 12 | 6 6 Explosive 14 | . 14 Electromagnetic . | . . Robot Hit Streak 7 | 7 5 Robot Miss Streak 3 | 3 3 Penetration Max . | . . Secondary Targets . | . . Shots Hit Robots 49 | 35 14 Core Hits 27 | 12 15 Critical Kills . | . . Critical Parts Destroyed . | . . Critical Strikes . | . . Melee Attacks . | . . Impact . | . . Slashing . | . . Piercing . | . . Sneak Attacks . | . . Combat Hostiles . | . . Follow-up Attacks . | . . Damage Inflicted 924 | 463 461 Guns 494 | 415 79 Cannons . | . . Explosions 377 | . 377 Melee . | . . Ramming 1 | . 1 Kinetic 494 | 415 79 Thermal 57 | 48 9 Explosive 372 | . 372 Electromagnetic . | . . Impact . | . . Slashing . | . . Piercing . | . . Highest Corruption 12 | . 12 Average Corruption 12 | . 12 Corruption Purged . | . . Corruption Blocked . | . . Effects 26 | . 26 Message Errors 8 | . 8 Matter Fused 6 | . 6 Heat Flow Errors 3 | . 3 Energy Discharges 1 | . 1 Parts Rejected 1 | . 1 Data Loss (minor) 4 | . 4 Data Loss (major) 2 | . 2 Misdirections 1 | . 1 Overload Shots . | . . Overflow Damage 33 | 18 15 Projectiles 18 | 18 . Explosions 15 | . 15 Melee . | . . Knockbacks . | . . Impact . | . . Kinetic . | . . Secondary . | . . Self-Inflicted Damage 29 | . 29 Shots 2 | . 2 Rammed 1 | . 1 Targets Rammed 1 | . 1 Kicked . | . . Crushed . | . . Highest Temperature 217 | 20 217 Average Temperature 40 | 12 76 Received Heat Transfer 180 | . 180 Siege Activations . | . . Robots Corrupted . | . . Combat Hostiles . | . . Parts Fried . | . . Impact Corruptions . | . . Robots Melted . | . . Combat Hostiles . | . . Parts Melted . | . . Heat Transferred 162 | 100 62 Parts Sabotaged . | . . Parts Stolen . | . . Parts Stripped . | . . Power Chain Reactions . | . . Missiles Intercepted . | . . Alert | -11 -10 ------- Run | Scr Mat Peak Influence 506 | 25 506 Initial . | . . Average 84 | 6 290 Maximum Alert Level 2 | . 2 Low Security (%) 76 | 100 13 Level 1 14 | . 53 Level 2 9 | . 33 Level 3 . | . . Level 4 . | . . Level 5 . | . . High Security . | . . Max Security . | . . Squads Dispatched 1 | . 1 Investigation . | . . Extermination . | . . Reinforcement 1 | . 1 Assault . | . . Garrison . | . . Intercept . | . . Searches Triggered . | . . Construction Impeded . | . . Haulers Reinforced . | . . Active Scanning Responses . | . . Cargo Convoy Interrupts . | . . Stealth | -11 -10 --------- Run | Scr Mat Distress Signals 3 | . 3 Communications Jammed . | . . Distress Signals . | . . Times Spotted 12 | . 12 Peak Tracking Total 6 | . 6 Tactical Retreats 2 | . 2 Traps | -11 -10 ------- Run | Scr Mat Traps Triggered 1 | . 1 Indirectly . | . . Trap Hack Attempts . | . . Triggered . | . . Disarmed . | . . Reprogrammed . | . . Reused . | . . Traps Extracted . | . . Installed . | . . Triggered . | . . Machines | -11 -10 ---------- Run | Scr Mat Machines Disabled 9 | . 9 Max in Single Turn 4 | . 4 Machines Sabotaged . | . . Garrisons Compromised . | . . Overloaded Fab Kills . | . . Hacking | -11 -10 --------- Run | Scr Mat Machines Accessed . | . . Terminals . | . . Fabricators . | . . Repair Stations . | . . Recycling Units . | . . Scanalyzers . | . . Garrison Access . | . . Total Hacks . | . . Successful . | . . Failed . | . . Catastrophic . | . . Database Lockouts . | . . Manual . | . . Terminals . | . . Fabricators . | . . Repair Stations . | . . Recycling Units . | . . Scanalyzers . | . . Garrison Access . | . . Terminal Hacks . | . . Fabricator Hacks . | . . Repair Station Hacks . | . . Recycling Unit Hacks . | . . Scanalyzer . | . . Garrison Access Hacks . | . . Unauthorized Hacks . | . . Terminals . | . . Fabricators . | . . Repair Stations . | . . Recycling Units . | . . Scanalyzers . | . . Garrison Access . | . . Data Cores Recovered . | . . Used . | . . Hacking Detections . | . . Full Trace Events . | . . Feedback Events . | . . Feedback Blocked . | . . Robot Schematics Acquired . | . . Robots Built . | . . Authchips . | . . Time . | . . Total Robot Build Rating . | . . Part Schematics Acquired . | . . Parts Built . | . . Authchips . | . . Time . | . . Total Part Build Rating . | . . Parts Repaired . | . . Time . | . . Parts Recycled . | . . Recycled Matter . | . . Retrieved Matter . | . . Retrieved Components . | . . Parts Scanalyzed . | . . Part Schematics Acquired . | . . Parts Damaged . | . . Bothacking | -11 -10 ------------ Run | Scr Mat Used RIF Installer . | . . Robots Hacked . | . . Non-combat . | . . Combat . | . . Robot Hacks Applied . | . . Relay Couplers Released . | . . Fabnet Peak Effective % . | . . Robots Rewired . | . . Allies Hacked . | . . Hacks Repelled . | . . Allies | -11 -10 -------- Run | Scr Mat Total Allies . | . . Largest Group . | . . Highest-Rated Group . | . . Highest-Rated Ally . | . . Total Orders . | . . Ally Attacks . | . . Total Damage . | . . Kills . | . . Allies Corrupted . | . . Allies Melted . | . . Intel | -11 -10 ------- Run | Scr Mat Robot Analysis Total . | . . Derelict Logs Recovered . | . . Drone Launches . | . . Drone Recoveries . | . . Exploration | -11 -10 ------------- Run | Scr Mat Turns Passed 2840 | 2059 781 Spaces Moved 929 | 665 264 Core 55 | 8 47 Treads 99 | . 99 Legs . | . . Wheels 775 | 657 118 Hover . | . . Flight . | . . Fastest Speed 50 | 50 50 Average Speed 87 | 80 105 Slowest Speed 160 | 100 160 Overloaded Moves . | . . Propulsion Burnouts . | . . Robots Hopped . | . . Cave-ins Triggered 1 | . 1 Exploration Rate (%) 40 | 32 49 Regions Visited 1 Branch Regions . Pre-discovered Areas . | . . Known Exits Taken . | . . Unknown Exits Taken 1 | 1 . Scrap Searched . | . . Spaces Dug 1 | 1 . Terrain Destroyed 109 | 3 106 Melee . | . . Projectile 3 | 3 . AOE 106 | . 106 Terrain Rammed . | . . Walls Destroyed . | . . Machines Disabled . | . . Actions | -11 -10 --------- Run | Scr Mat Total 2844 | 2116 728 Wait 1799 | 1389 410 Move 928 | 664 264 Hop . | . . Pick Up 27 | 17 10 Fast Attach 1 | . 1 Attach 16 | 9 7 Detach 1 | . 1 Swap 3 | . 3 Drop 6 | 2 4 Fire 62 | 35 27 Melee . | . . Ram . | . . Kick . | . . Crush 1 | . 1 Escape Stasis . | . . Rewire . | . . Trap . | . . Miscellaneous . | . . Route ------- -11/Scrapyard -10/Materials (discovered 3 exits: [*Mat] / [*Min x2]) History --------- Turn | Location | Event 21 | -11/Scrapyard | Discovered new exit (range 15) 2060 | -11/Scrapyard | Entered Materials 2061 | -10/Materials | Build established: Mutant 2156 | -10/Materials | Discovered new exit (range 5) 2202 | -10/Materials | Met 8R-AWN 2206 | -10/Materials | Attacked by 8R-AWN 2215 | -10/Materials | Crushed by falling debris 2215 | -10/Materials | System corruption reached 10% 2224 | -10/Materials | Core integrity fell below 50% 2254 | -10/Materials | Lost 7 parts (1p2n2u2w) 2742 | -10/Materials | Core integrity fell below 20% 2755 | -10/Materials | Discovered new exit (range 9) 2823 | -10/Materials | Discovered new exit (range 10) 2841 | -10/Materials | Destroyed by G-34 Mercenary with Small Laser Last Messages --------------- 02734_ U-05 Engineer builds a Wall. 02747_ Welding Torch destroyed. 02748_ U-05 Engineer lays Concrete. 02753_ Acquired 30 matter. 02754_ U-05 Engineer lays Concrete. 02755_ EXIT=FOUND 02755_ U-05 Engineer lays Concrete. 02764_ 4GVKX%KXTUJJSAZYFHKHAPYD 02764_ U-05 Engineer lays Concrete. 02772_ Acquired Transport Network Coupler. 02789_ Triggered Explosive Trap. 02789_ An explosion rips through the floor. 02793_ K-01 Serf cleans the Fusion Modulator. 02797_ ESZXFH1E D8 SL8FGGG:UG5X M, 02800_ K-01 Serf cleans the Fusion Modulator. 02812_ System corrupted: Component data lost. 02813_ Lgt. Treads destroyed. 02823_ EXIT=FOUND 02833_ Acquired 37 matter. 02841_ System corrupted: Lgt. Treads rejected. Map ----- +----------------------------------------------------+ | | | | | | | | | | | | | | | | | | | | | | | | | | | ?????????????????????????????????????????????????? | | ?????????????????????????????????????????????????? | | ?????????????????????????????????????????????????? | | ?????????????????????????????????????????????????? | | ?????????????????????????????????????????????????? | | ?????????????????????????????????????????????????? | | ?????????????????????????????????????????????????? | | ?????????????????????????????????????????????????? | | ?????????????????????????????????????????????????? | | ????#############+###########+######+###?????????? | | ????# ????????? | | ????# < % ????????? | | ????# g @ ????????? | | ?????# ##### #####+###########???????????????? | | ?????????????# #??? ?????????????????????????? | | ?????????????# #??? ?????????????????????????? | | ?????????????# %#?? ????????????????????????? | | ?????????????# #?? ????????????????????????? | | ?????????????# #? ???????????????????????? | | ?????????????# #?#######???????????????????????? | | ?????????????# #???????????????????????????????? | | ?????????????# #???????????????????????????????? | | ?????????????# #???????????????????????????????? | | ?????????????# #???????????????????????????????? | | ?????????????# #???????????????????????????????? | | ?????????????# /???????????????????????????????? | | ?????????????# #???????????????????????????????? | | ?????????????# #????? #????????????????? | | ?????????????# #########+###+## ???????????????? | | ?????????????# a + ???????????????? | | ?????????????# # ???????????????? | | ?????????????# + ???????????????? | | ?????????????####### ##### # ??????????????? | | ?????????????????? " #### ! ###??????????????? | | ???????????????? "Y" """ #" ##??????????????? | | ?????????????#?# """ #""==%! ##??????????????? | | ?????????#?????# """ #|| !=! ##??????????????? | +----------------------------------------------------+ Best States ------------- Heat Dissipation 25 Energy Generation 10 Energy Capacity 250 Matter Stores 300 Matter Capacity 300 Sight Range 16 Terrain Scan Range 16 Terrain Scan Density 85 Evasion (%) 50 Recoil Reduction 2 Item Schematics ----------------- None Robot Schematics ------------------ None Fabricated ------------ Nothing Alien Tech Used ----------------- None Achievements -------------- System Compromised Challenges ------------ None Game ------ Seed BurstShadingInjector Manual? 0 Play Time 00:36:06 Cumulative 13.9 hours Start 2022.07.04 @ 00:33:46 End 2022.07.04 @ 01:13:07 Sessions 1 Manual Loads 0 Difficulty Rogue Special Mode None Game No. 9 Rogue 9 Adventurer 0 Explorer 0 Win Type - Total 0 Types 0/0/0/0/0/0/0/0/0 Lore% 7 Gallery% 16 Achievement% 15 Wizard Run 0 Options --------- ASCII 0 Keyboard 0 Movement Mouse Keybinds 0 Fullscreen 2 Font 24/Smallcaps Map View 113x50 Tactical HUD 1 Map Filters NONE Filters NONE Steam 1 RUN: ef72b1d9-6fca-4ee2-a465-90543a4a55da